bitfinex/quotes_ETHUSD_20260227
["timestamp","ask_amount","ask_price","bid_price","bid_amount"]
[1772223064705,0.002,1926.3,1926.0,3.40470841]
[1772223065203,0.002,1926.5,1926.0,3.40470841]
[1772223065510,0.002,1926.5,1926.1,0.51370174]
[1772223066506,0.002,1926.5,1926.2,1.29789222]
[1772223066815,0.002,1926.5,1926.2,2.89489222]
[1772223067798,0.002,1926.5,1926.2,3.40859396]
[1772223068516,0.002,1926.5,1926.2,2.11070174]
[1772223068850,0.49114254,1926.5,1926.2,1.597]
[1772223069325,0.49114254,1926.5,1926.0,5.70567916]
[1772223069326,0.49114254,1926.5,1926.3,1.6]
[1772223071011,0.49114254,1926.5,1926.3,2.89781772]
[1772223071324,0.49114254,1926.5,1926.2,1.29784579]
[1772223071520,0.49114254,1926.5,1926.2,2.89784579]
[1772223071715,1.78885342,1926.5,1926.1,0.51266459]
[1772223071916,0.50286264,1926.4,1926.2,1.6]
[1772223073618,0.50286264,1926.4,1926.2,2.89788859]
[1772223073818,0.50286264,1926.4,1926.2,1.6]
[1772223076313,0.50286264,1926.4,1926.1,0.001]
[1772223076510,0.50286264,1926.3,1926.1,0.001]
[1772223076736,0.50486264,1926.3,1925.8,1.81079928]
[1772223076945,0.50486264,1926.3,1926.0,1.604]
[1772223077637,0.50486264,1926.3,1926.0,0.001]
[1772223077938,0.50286264,1926.1,1925.7,1.603]
[1772223078829,0.50286264,1926.1,1925.6,0.001]
[1772223079950,0.50286264,1925.9,1925.6,0.001]
[1772223082341,1.80097953,1925.9,1925.6,0.001]
[1772223082553,1.29807857,1926.0,1925.6,0.51366459]
[1772223082725,1.80085851,1926.1,1925.6,0.51366459]
[1772223084768,0.50286264,1926.0,1925.6,0.51366459]
[1772223085143,0.50286264,1926.0,1925.6,0.001]
[1772223086656,0.50286264,1925.9,1925.6,0.001]
[1772223087375,1.29806706,1926.0,1925.6,0.51366459]
[1772223088973,1.80086989,1926.1,1925.7,0.51266459]
[1772223089173,1.80086989,1926.1,1925.7,0.51366459]
[1772223089354,1.80274551,1926.3,1925.7,0.51366459]
[1772223090342,0.50286264,1926.2,1925.7,0.51366459]
[1772223091176,0.50286264,1926.0,1925.7,0.001]
[1772223093186,1.80095703,1925.9,1925.7,0.001]
[1772223093682,0.50286264,1925.8,1925.6,0.001]
[1772223094064,1.29809439,1925.9,1925.6,0.001]
[1772223094258,1.80095703,1925.9,1925.6,0.001]
[1772223095483,0.50286264,1925.8,1925.6,0.001]
[1772223096070,1.29809439,1925.9,1925.6,0.001]
[1772223096269,0.50286264,1925.8,1925.6,0.001]
[1772223096788,1.29809461,1925.9,1925.6,0.001]
[1772223096988,1.80095725,1925.9,1925.6,0.001]
[1772223098794,0.50286264,1925.8,1925.6,0.001]
[1772223101304,0.48673135,1925.7,1925.6,0.001]
[1772223111128,1.78490203,1925.8,1925.6,0.001]
[1772223114643,1.78490203,1925.8,1925.7,0.001]
[1772223115638,1.78490203,1925.8,1925.6,0.001]
[1772223115940,0.48673135,1925.7,1925.6,0.001]
[1772223116237,0.002,1925.9,1925.6,0.52026202]
[1772223116642,0.48873135,1925.9,1925.6,1.81855698]
[1772223117329,0.48873135,1925.9,1925.6,0.52026202]
[1772223119927,0.48873135,1925.9,1925.6,1.81855588]
[1772223120146,1.78683229,1925.9,1925.6,0.52026202]
[1772223121227,1.78683229,1925.9,1925.5,0.52026202]
[1772223121228,0.48673135,1925.8,1925.5,0.52026202]
[1772223121456,0.97760557,1925.8,1925.5,0.52026202]
[1772223121759,0.48673135,1925.8,1925.5,0.52026202]
[1772223122335,1.78489728,1925.8,1925.5,0.52026202]
[1772223122736,0.48673135,1925.8,1925.5,0.52026202]
[1772223122936,1.78490135,1925.8,1925.5,0.52026202]
[1772223123132,0.48673135,1925.8,1925.5,0.52026202]
[1772223124066,0.48673135,1925.8,1925.5,1.81862278]
[1772223124561,0.48873135,1925.9,1925.6,0.51926202]
[1772223127067,0.48873135,1925.9,1925.7,0.51926202]
[1772223127068,0.002,1925.9,1925.7,0.51926202]
[1772223128051,0.002,1925.8,1925.7,0.51926202]
[1772223129360,0.002,1925.8,1925.7,1.81749123]
[1772223129890,0.002,1925.8,1925.7,0.51926202]
[1772223130295,1.29996938,1926.1,1925.7,0.51926202]
[1772223130296,0.002,1926.1,1925.8,0.49155427]
[1772223130455,0.002,1926.1,1926.0,0.49155427]
[1772223131689,0.002,1926.1,1926.0,1.78958126]
[1772223132192,0.002,1926.2,1926.1,0.49155427]
[1772223133359,0.002,1926.2,1925.7,1.78978348]
[1772223133360,0.537242,1926.2,1925.7,1.78978348]
[1772223133582,1.02611622,1926.1,1925.8,1.606]
[1772223133960,0.535242,1926.1,1925.8,1.606]
[1772223134363,0.535242,1926.1,1925.8,3.39570942]
[1772223138875,0.537242,1926.2,1925.9,0.49155427]
[1772223139076,0.002,1926.3,1926.2,0.49155427]
[1772223139304,0.002,1926.3,1926.2,2.10055427]
[1772223139477,0.002,1926.4,1926.2,2.10055427]
[1772223139680,0.002,1926.7,1926.4,0.49155427]
[1772223139904,0.002,1926.7,1926.5,2.10055427]
[1772223140101,0.002,1926.7,1926.6,0.49155427]
[1772223140800,0.002,1926.7,1926.5,2.90668444]
[1772223141187,0.002,1926.7,1926.5,3.39823871]
[1772223143588,0.537242,1926.7,1926.5,1.611]
[1772223143995,0.002,1926.7,1926.5,1.611]
[1772223145220,0.535242,1927.1,1926.7,1.7890996]
[1772223145514,0.535242,1927.1,1926.7,0.49155427]
[1772223146295,0.535242,1927.1,1926.7,1.78910778]
[1772223147294,0.535242,1927.1,1926.7,0.49155427]
[1772223147496,0.49087422,1926.9,1926.6,1.612]
[1772223147692,0.535242,1927.0,1926.6,1.612]
[1772223147896,1.78816461,1927.1,1926.7,0.49155427]
[1772223148097,2.32340661,1927.1,1926.7,0.49155427]
[1772223152140,1.02611622,1927.3,1926.8,0.49155427]
[1772223152312,1.83236248,1927.4,1926.8,0.49155427]
[1772223152627,0.49087422,1927.5,1926.8,0.49155427]
[1772223153513,0.002,1927.0,1926.8,0.49155427]
[1772223153700,0.002,1927.0,1926.9,1.78897499]
[1772223154203,5.72305191,1927.6,1926.9,1.78897499]
[1772223154204,0.535242,1927.6,1927.0,0.49155427]
[1772223154409,0.535242,1927.7,1927.3,0.49155427]
[1772223154612,0.535242,1927.9,1927.4,0.49155427]
[1772223154912,0.535242,1927.7,1927.4,0.49155427]
[1772223155243,0.535242,1927.7,1927.1,0.98242849]
[1772223155454,0.535242,1927.7,1927.2,2.10255427]
[1772223155597,0.535242,1927.7,1927.3,0.49155427]
[1772223157524,0.535242,1927.7,1927.3,1.788643]
[1772223158406,1.8320222,1927.9,1927.4,0.49155427]
[1772223158607,0.535242,1927.8,1927.4,0.49155427]
[1772223159356,0.50739632,1927.8,1927.4,0.49155427]
[1772223159527,2.2879564,1928.0,1927.5,1.84221444]
[1772223159859,0.50035026,1928.0,1927.5,1.84221444]
[1772223160347,0.50035026,1928.0,1927.6,0.52546372]
[1772223161758,0.00153886,1928.0,1927.8,0.52546372]
[1772223162123,0.50371658,1928.4,1927.9,0.52546372]
[1772223162439,1.8001355,1928.4,1927.9,0.52546372]
[1772223162638,2.29100972,1928.4,1927.9,0.52546372]
[1772223163260,0.50371658,1928.3,1927.9,0.52546372]
[1772223166328,1.80020698,1928.3,1927.9,3.43221137]
[1772223166866,0.50371658,1928.1,1927.7,1.29683316]
[1772223167049,0.9945908,1927.9,1927.5,3.43245404]
[1772223167246,0.50371658,1927.9,1927.5,1.61]
[1772223167436,0.50371658,1927.7,1927.5,1.61]
[1772223167860,0.50371658,1927.7,1927.5,2.90701111]
[1772223168157,0.50371658,1927.8,1927.5,2.90701111]
[1772223169659,0.50371658,1928.0,1927.6,0.52546372]
[1772223170554,0.50371658,1928.0,1927.6,1.82238538]
[1772223170769,0.50371658,1928.2,1927.7,0.52546372]
[1772223172733,1.80032748,1928.2,1927.7,1.82234482]
[1772223172938,0.50371658,1928.1,1927.6,1.2969006]
[1772223173249,0.50371658,1928.1,1927.6,2.9089006]
[1772223173426,0.50371658,1928.1,1927.7,0.52546372]
[1772223174975,0.50371658,1928.1,1927.7,1.82228914]
[1772223175448,0.50571658,1928.3,1927.8,0.52546372]
[1772223175840,0.50371658,1928.2,1927.8,0.52546372]
[1772223177248,0.002,1928.3,1927.9,0.52546372]
[1772223177458,0.50371658,1928.2,1927.8,1.29677783]
[1772223177660,0.50371658,1928.2,1927.9,1.617]
[1772223179150,0.50371658,1928.2,1927.9,2.91370821]
[1772223179354,0.50371658,1928.2,1927.8,1.82222083]
[1772223179584,0.50371658,1928.1,1928.0,0.001]
[1772223179888,0.50371658,1928.1,1927.6,2.91591025]
[1772223180250,0.50371658,1928.1,1927.9,0.001]
[1772223180768,0.50371658,1928.1,1927.7,0.001]
[1772223181174,1.29668049,1928.0,1927.7,0.001]
[1772223181386,0.002,1928.2,1927.7,0.52646372]
[1772223181600,0.50571658,1928.2,1927.7,0.52646372]
[1772223181982,1.80226863,1928.2,1927.7,0.52646372]
[1772223182189,0.50371658,1928.1,1927.7,0.52646372]
[1772223183219,0.50371658,1928.1,1927.7,1.62]
[1772223183688,0.50371658,1928.1,1927.7,2.91686574]
[1772223184075,0.50371658,1928.1,1927.7,3.44232946]
[1772223185328,1.80033807,1928.1,1927.7,2.14546372]
[1772223185607,1.80033807,1928.1,1927.7,2.14646372]
[1772223185810,1.80033807,1928.1,1927.7,3.44334142]
[1772223185997,0.50371658,1928.1,1927.7,3.44334142]
[1772223187883,1.80033087,1928.1,1927.7,3.44434142]
[1772223188085,0.50371658,1928.1,1927.7,3.44434142]
[1772223189835,0.50371658,1928.1,1927.8,0.52546372]
[1772223190336,0.54042508,1928.2,1927.8,1.82224903]
[1772223191130,0.54042508,1928.2,1927.8,1.29678531]
[1772223191330,0.54042508,1928.2,1927.9,0.54503872]
[1772223191927,0.53842508,1928.1,1927.7,2.16703872]
[1772223192243,1.29665674,1928.1,1927.7,2.16703872]
[1772223192448,0.53842508,1928.0,1927.7,3.46391953]
[1772223192648,0.53842508,1928.0,1927.7,2.16703872]
[1772223193012,0.53842508,1928.0,1927.7,3.46392095]
[1772223193431,0.53842508,1928.0,1927.7,2.16703872]
[1772223193728,0.53842508,1928.0,1927.8,0.001]
[1772223196736,0.002,1928.3,1928.1,0.54503872]
[1772223196940,0.002,1928.3,1928.0,2.16903872]
[1772223197362,0.002,1928.3,1927.8,0.001]
[1772223197363,0.53842508,1928.2,1927.8,0.001]
[1772223199346,0.002,1928.3,1927.8,0.54603872]
[1772223200078,0.002,1928.3,1927.9,0.54503872]
[1772223200239,0.41552841,1928.8,1928.1,0.54503872]
[1772223200576,0.41587783,1928.4,1928.0,1.626]
[1772223200776,0.41587783,1928.6,1928.1,0.54503872]
[1772223201539,1.71219585,1928.6,1928.1,1.84162739]
[1772223202796,0.41656447,1928.5,1928.1,1.84164967]
[1772223203887,2.44779593,1928.7,1928.2,0.54503872]
[1772223204258,0.41690061,1928.7,1928.2,0.54503872]
[1772223204461,1.71331884,1928.9,1928.2,0.54503872]
[1772223205184,1.71331382,1928.9,1928.2,0.54503872]
[1772223205561,2.44797079,1928.9,1928.2,0.54503872]
[1772223205867,0.41756692,1928.8,1928.3,1.84151748]
[1772223206469,0.41756692,1928.8,1928.3,0.54503872]
[1772223207404,2.44895087,1928.9,1928.3,0.54503872]
[1772223207560,0.002,1928.6,1928.3,0.54503872]
[1772223208057,0.002,1928.6,1928.4,1.84145025]
[1772223210088,0.002,1928.7,1928.6,1.84131581]
[1772223211990,0.002,1928.9,1928.8,1.29614267]
[1772223212188,0.002,1928.9,1928.8,2.17503872]
[1772223214285,0.002,1928.9,1928.8,0.54503872]
[1772223214476,0.002,1928.9,1928.8,2.17703872]
[1772223214676,0.002,1928.9,1928.7,1.632]
[1772223214872,0.002,1928.9,1928.7,2.17703872]
[1772223218267,0.002,1928.9,1928.5,1.84138302]
[1772223218469,0.4211515,1928.8,1928.5,1.637]
[1772223219194,0.4211515,1928.8,1928.4,1.636]
[1772223219786,0.4211515,1928.8,1928.7,0.001]
[1772223219997,0.4231515,1928.8,1928.7,0.001]
[1772223220395,1.71929417,1928.8,1928.7,0.001]
[1772223221095,0.42115419,1928.7,1928.5,0.001]
[1772223222698,1.71736442,1928.7,1928.5,0.001]
[1772223223312,0.42116071,1928.6,1928.0,0.49758276]
[1772223223619,0.42116071,1928.6,1928.0,2.13258276]
[1772223224110,0.42116071,1928.6,1928.0,1.635]
[1772223224285,0.42116071,1928.6,1928.1,0.49758276]
[1772223224915,0.42017065,1928.5,1928.1,1.79417879]
[1772223225293,0.42018252,1928.4,1927.9,1.79532704]
[1772223225504,0.42018252,1928.4,1928.0,0.49758276]
[1772223227384,1.71661957,1928.4,1928.0,0.49758276]
[1772223228712,0.42018252,1928.4,1928.0,1.2966777]
[1772223228888,5.60535144,1928.6,1928.1,0.49758276]
[1772223229400,5.18500427,1928.7,1928.1,1.79419473]
[1772223229589,5.18500427,1928.7,1928.2,0.49758276]
[1772223229590,0.42019023,1928.6,1928.2,0.49758276]
[1772223229793,0.42019023,1928.6,1928.0,0.49758276]
[1772223230713,0.42019023,1928.6,1928.0,2.13358276]
[1772223230910,0.42019023,1928.6,1928.0,0.49758276]
[1772223231614,0.42018994,1928.4,1928.0,0.49758276]
[1772223232918,0.42019016,1928.2,1927.9,0.001]
[1772223233991,1.71678827,1928.2,1927.9,0.001]
[1772223234219,1.71678827,1928.2,1928.1,0.001]
[1772223236244,1.71678827,1928.2,1928.0,0.001]
[1772223236559,0.4201947,1928.1,1927.8,0.001]
[1772223238016,0.4201947,1928.1,1927.8,0.49858276]
[1772223238429,1.29668049,1928.0,1927.8,0.49858276]
[1772223239113,1.29668049,1928.0,1927.8,0.001]
[1772223239517,1.71688052,1928.0,1927.8,0.001]
[1772223240633,1.71689562,1928.0,1927.8,0.001]
[1772223241215,5.18657214,1928.1,1927.8,0.001]
[1772223241216,1.29663803,1928.1,1927.8,0.49858276]
[1772223241640,1.7167825,1928.2,1927.8,0.49858276]
[1772223242155,0.4202055,1927.9,1927.8,0.001]
[1772223242460,0.4202055,1927.9,1927.7,0.001]
[1772223242756,1.71700774,1927.9,1927.7,0.001]
[1772223242951,0.41920702,1927.8,1927.7,0.001]
[1772223243123,1.71584992,1928.1,1927.7,0.001]
[1772223243450,1.71585002,1928.1,1927.7,0.49858276]
[1772223243757,0.41920712,1928.1,1927.7,0.49858276]
[1772223244263,1.78642135,1928.2,1927.7,0.49858276]
[1772223244776,1.29659608,1928.2,1927.7,0.49858276]
[1772223245537,2.20563007,1928.2,1927.7,0.49858276]
[1772223247446,1.78642135,1928.2,1927.7,0.49858276]
[1772223247663,1.78642135,1928.2,1927.9,0.49758276]
[1772223248163,0.002,1928.1,1927.9,0.49758276]
[1772223250058,0.002,1928.1,1927.9,0.54010188]
[1772223250262,0.55069776,1928.1,1927.7,0.0023661]
[1772223250580,0.55069776,1928.1,1927.8,0.0013661]
[1772223250783,0.002,1928.1,1927.8,0.0013661]
[1772223254003,0.54869776,1928.0,1927.7,0.001]
[1772223254214,0.54869776,1927.9,1927.7,0.001]
[1772223254513,0.002,1928.1,1927.7,0.001]
[1772223254718,0.55069776,1928.1,1927.7,0.00764619]
[1772223255080,0.55069776,1928.1,1927.7,1e-08]
[1772223255479,1.29668049,1928.0,1927.7,1e-08]
[1772223255707,1.29861395,1928.1,1927.7,1e-08]
[1772223256891,1.29862457,1928.1,1927.7,1e-08]
[1772223259713,0.002,1928.1,1927.8,0.00629394]
[1772223260013,0.002,1928.1,1927.8,0.00729394]
[1772223264044,0.002,1928.1,1927.9,0.01107474]
[1772223267551,0.002,1928.1,1927.9,1.30778793]
[1772223267747,0.002,1928.1,1928.0,0.01563186]
[1772223268746,0.002,1928.4,1928.1,0.01673817]
[1772223268911,0.002,1928.5,1928.3,0.01473817]
[1772223269112,0.55302085,1928.4,1928.0,0.01473817]
[1772223270150,1.84946889,1928.4,1928.0,0.01473817]
[1772223270915,0.55302085,1928.4,1928.1,0.01692084]
[1772223271110,1.29839067,1928.5,1928.1,0.01692084]
[1772223271111,0.55502085,1928.5,1928.1,0.01692084]
[1772223272618,0.002,1928.3,1928.1,1.29659155]
[1772223272814,0.002,1928.3,1928.2,0.01754766]
[1772223275558,0.002,1928.5,1928.3,0.01846717]
[1772223278461,0.55502085,1928.5,1928.2,1.31589952]
[1772223278964,0.55502085,1928.5,1928.2,0.01935352]
[1772223279657,0.55502085,1928.5,1928.1,1.29655551]
[1772223280039,0.55502085,1928.5,1928.0,1.8061544]
[1772223280239,0.55302085,1928.4,1928.0,1.8061544]
[1772223280440,0.55302085,1928.2,1927.9,1.29670668]
[1772223280659,0.55302085,1928.2,1928.0,1.634]
[1772223281562,0.55302085,1928.2,1927.8,0.001]
[1772223281736,0.55302085,1928.2,1927.8,2.93280823]
[1772223281937,0.55302085,1928.2,1927.8,3.4226335]
[1772223284368,0.55302085,1928.2,1927.9,0.001]
[1772223290480,0.02592932,1928.3,1928.1,0.0231296]
[1772223290684,0.57895017,1928.3,1927.9,0.001]
[1772223290852,0.57895017,1928.3,1927.9,0.0241296]
[1772223291475,0.55302085,1928.2,1927.9,0.0241296]
[1772223291682,0.55302085,1928.2,1927.9,0.001]
[1772223291879,0.55302085,1928.2,1927.9,1.29774608]
[1772223293892,0.02592932,1928.3,1928.0,0.51368882]
[1772223294192,0.57895017,1928.3,1928.0,0.51368882]
[1772223296349,0.57895017,1928.3,1928.0,1.81135383]
[1772223296549,0.002,1928.2,1928.0,1.81136484]
[1772223296755,0.55302085,1928.1,1927.9,0.001]
[1772223298383,0.55252085,1928.0,1927.9,0.001]
[1772223302004,0.55252085,1928.0,1927.8,0.001]
[1772223302679,1.85061543,1928.2,1927.8,0.02893919]
[1772223302877,1.85056703,1928.2,1927.8,0.02893919]
[1772223303081,0.55402085,1928.2,1927.8,0.02893919]
[1772223304592,1.85056774,1928.2,1927.8,0.02893919]
[1772223305093,1.85056774,1928.2,1927.8,0.001]
[1772223305094,0.55202085,1928.1,1927.8,0.001]
[1772223305692,0.55202085,1928.1,1927.8,1.29781201]
[1772223305895,0.55202085,1928.1,1927.8,0.001]
[1772223306998,0.55202085,1928.0,1927.8,0.001]
[1772223307675,0.55202085,1928.0,1927.6,0.001]
[1772223307881,0.55202085,1928.0,1927.6,1.648]
[1772223308478,0.55202085,1928.0,1927.6,2.97513563]
[1772223308671,0.55202085,1928.0,1927.6,1.67820486]
[1772223309073,1.29670638,1928.0,1927.6,1.67820486]
[1772223309273,0.55152085,1927.9,1927.6,1.67820486]
[1772223309677,0.55152085,1927.9,1927.8,0.001]
[1772223311005,0.55352085,1928.0,1927.8,0.001]
[1772223311706,0.002,1928.0,1927.8,0.76659364]
[1772223311999,0.55352085,1928.2,1927.9,0.03102552]
[1772223313104,0.02792932,1928.3,1927.9,0.03102552]
[1772223313313,0.002,1928.6,1928.3,0.52826058]
[1772223313509,1.84475199,1928.5,1928.1,0.52826058]
[1772223313807,0.54839699,1928.5,1928.1,1.82487051]
[1772223313999,1.84475551,1928.5,1928.1,0.52826058]
[1772223314188,0.54839699,1928.4,1928.1,0.52826058]
[1772223314793,0.54839699,1928.4,1928.0,1.647]
[1772223315315,0.54839699,1928.4,1928.0,2.17526058]
[1772223315813,0.54839699,1928.3,1928.0,2.17526058]
[1772223316682,0.54839699,1928.3,1928.0,3.47194074]
[1772223317109,0.54839699,1928.3,1928.0,2.17526058]
[1772223317712,0.54839699,1928.3,1928.0,3.47193499]
[1772223318994,1.298331,1928.6,1928.2,0.52826058]
[1772223319187,1.84672799,1928.6,1928.2,0.52826058]
[1772223320818,0.54839699,1928.5,1928.2,0.52826058]
[1772223321316,0.54839699,1928.5,1928.2,1.82480578]
[1772223321522,1.84668307,1928.6,1928.2,0.52826058]
[1772223321895,0.55039699,1928.6,1928.2,1.82480223]
[1772223322418,0.002,1928.5,1928.2,1.82480223]
[1772223322609,0.002,1928.5,1928.3,0.52826058]
[1772223322810,0.002,1928.5,1928.3,1.82471789]
[1772223323108,0.002,1928.6,1928.4,0.52826058]
[1772223323321,0.54993585,1929.0,1928.6,0.52826058]
[1772223323522,0.002,1928.8,1928.6,0.52826058]
[1772223325931,0.002,1928.8,1928.6,1.82452126]
[1772223326222,0.002,1928.8,1928.6,0.52826058]
[1772223327594,0.55039699,1928.8,1928.4,2.18026058]
[1772223329329,0.55039699,1928.8,1928.3,0.73456812]
[1772223329528,0.54839699,1928.6,1928.4,1.653]
[1772223330116,0.54839699,1928.7,1928.4,2.18126058]
[1772223331600,0.54839699,1928.7,1928.5,1.2963443]
[1772223331799,0.54839699,1928.7,1928.4,3.47761968]
[1772223332023,0.54839699,1928.7,1928.4,3.47765475]
[1772223332330,0.54839699,1928.7,1928.4,2.18126058]
[1772223332505,0.54839699,1928.6,1928.1,0.52926058]
[1772223332705,0.54839699,1928.6,1928.3,1.654]
[1772223333597,0.54839699,1928.6,1928.2,0.52826058]
[1772223333598,0.54839699,1928.5,1928.2,0.52826058]
[1772223333838,0.54839699,1928.5,1928.1,0.001]
[1772223335727,1.29641153,1928.4,1928.1,0.001]
[1772223335930,0.54839699,1928.3,1928.1,0.001]
[1772223336132,0.54839699,1928.3,1927.8,0.001]
[1772223336317,0.54839699,1928.1,1927.6,0.001]
[1772223337832,0.54839699,1927.9,1927.6,0.001]
[1772223341231,0.54839699,1927.9,1927.6,0.56098824]
[1772223342047,0.53504221,1928.1,1927.6,0.56098824]
[1772223343324,0.53504221,1928.0,1927.6,0.001]
[1772223346340,0.53504221,1927.8,1927.6,0.001]
[1772223347331,0.53504221,1927.6,1926.8,0.001]
[1772223347531,0.53504221,1927.4,1926.8,0.001]
[1772223348241,1.29715145,1927.3,1926.8,0.001]
[1772223348449,0.53504221,1927.2,1926.8,0.001]
[1772223350631,0.53504221,1927.0,1926.8,0.001]
[1772223351544,0.53504221,1927.3,1926.8,0.56098824]
[1772223351738,1.83220922,1927.3,1926.8,0.56098824]
[1772223352057,0.53504221,1927.3,1926.8,0.56098824]
[1772223352749,1.83219405,1927.3,1926.8,0.56098824]
[1772223354149,0.53504221,1927.3,1926.9,1.83316715]
[1772223354540,1.83220816,1927.3,1926.9,0.53574643]
[1772223354734,0.53504221,1927.3,1926.9,0.53574643]
[1772223355124,1.83220296,1927.3,1926.9,0.53574643]
[1772223356471,0.56229508,1927.2,1926.9,0.53574643]
[1772223358640,0.56229508,1927.2,1926.9,1.83315275]
[1772223358838,0.56229508,1927.3,1926.9,1.83315275]
[1772223359767,0.56229508,1927.4,1927.0,0.53574643]
[1772223360262,1.85938795,1927.4,1927.0,0.53674643]
[1772223360759,1.85924952,1927.6,1927.3,0.53574643]
[1772223361065,0.56229508,1927.5,1927.1,0.53574643]
[1772223362934,0.56229508,1927.6,1927.2,1.02587885]
[1772223363132,0.002,1927.7,1927.5,0.53574643]
[1772223365465,1.86254304,1928.0,1927.5,0.53574643]
[1772223365466,0.00353886,1928.0,1927.6,0.53574643]
[1772223365837,0.56229508,1928.5,1927.8,0.53574643]
[1772223368670,0.56229508,1928.5,1928.0,0.53574643]
[1772223368971,0.56229508,1928.4,1927.8,0.53574643]
[1772223369139,0.56229508,1928.4,1927.8,2.18774643]
[1772223369340,0.56229508,1928.4,1927.8,3.48454881]
[1772223371058,0.56754502,1928.3,1927.8,0.53574643]
[1772223371280,0.56754502,1928.3,1927.6,3.52043505]
[1772223371745,0.56754502,1928.3,1927.7,0.57054554]
[1772223372985,0.56754502,1928.3,1927.6,0.57054554]
[1772223373277,0.56754502,1928.1,1927.6,1.86744737]
[1772223373651,0.56754502,1928.1,1927.7,0.57054554]
[1772223375775,0.56754502,1928.1,1927.7,1.86741028]
[1772223378085,1.86415893,1928.1,1927.7,0.57054554]
[1772223378265,0.56754502,1928.0,1927.7,0.57054554]
[1772223378987,0.56754502,1928.0,1927.4,0.57054554]
[1772223380804,0.56754502,1928.0,1927.5,1.8675624]
[1772223380962,1.8642312,1928.0,1927.5,1.8675624]
[1772223381162,0.56754502,1928.0,1927.5,1.8675624]
[1772223381364,0.56754502,1928.0,1927.6,0.57054554]
[1772223381896,1.86422659,1928.0,1927.6,0.57054554]
[1772223382269,0.56754502,1927.9,1927.6,0.57054554]
[1772223383515,0.56754502,1927.8,1927.2,0.57054554]
[1772223383798,0.56754502,1927.8,1927.1,1.86882192]
[1772223384167,0.56754502,1927.8,1927.2,0.57054554]
[1772223385504,0.56754502,1927.6,1927.3,0.001]
[1772223388068,1.86450879,1927.6,1927.3,0.001]
[1772223388291,0.56754502,1927.5,1927.3,0.001]
[1772223388718,0.49000356,1927.5,1927.2,0.57054554]
[1772223388934,9.10728862,1927.8,1927.1,0.001]
[1772223388935,0.002,1928.0,1927.4,0.57054554]
[1772223389092,0.002,1928.0,1927.6,0.57054554]
[1772223389429,0.002,1928.0,1927.4,0.57054554]
[1772223389430,0.56954502,1928.0,1927.4,0.57054554]
[1772223389621,0.56954502,1928.0,1927.2,2.22954554]
[1772223389622,0.56754502,1927.9,1927.2,2.22954554]
[1772223389821,0.56754502,1927.9,1927.2,1.659]
[1772223389994,0.56754502,1927.9,1927.3,0.57054554]
[1772223390321,0.56754502,1927.9,1927.4,1.86762969]
[1772223390617,0.56754502,1927.9,1927.4,2.35763325]
[1772223392420,0.002,1928.0,1927.5,0.57054554]
[1772223392610,0.002,1928.0,1927.8,1.0605491]
[1772223392808,0.002,1928.0,1927.8,0.57054554]
[1772223393016,0.002,1928.0,1927.6,1.0605491]
[1772223393220,0.002,1928.0,1927.6,0.57054554]
[1772223395126,0.56954502,1928.0,1927.7,1.29688229]
[1772223397143,1e-08,1928.0,1927.7,1.29688229]
[1772223399044,0.002,1927.9,1927.7,1.29688229]
[1772223399327,0.002,1927.9,1927.3,1.29810085]
[1772223399328,0.56954502,1927.9,1927.3,1.29810085]
[1772223400426,0.56954502,1927.9,1927.3,1.84579705]
[1772223400845,0.002,1927.9,1927.6,0.5476962]
[1772223402433,0.002,1927.9,1927.6,2.2126962]
[1772223402843,0.55771343,1927.9,1927.4,0.5476962]
[1772223403147,0.55771343,1927.9,1927.5,6.85292307]
[1772223405955,0.55771343,1927.9,1927.5,5.18792307]
[1772223406987,0.55771343,1927.9,1927.4,2.2156962]
[1772223407155,0.55771343,1927.9,1927.4,2.96503836]
[1772223407332,0.55771343,1927.9,1927.4,2.96603836]
[1772223409158,0.55771343,1927.9,1927.5,0.5476962]
[1772223410031,0.55771343,1927.9,1927.6,1.29694957]
[1772223411762,0.55771343,1927.9,1927.5,0.5476962]
[1772223412762,0.55771343,1927.9,1927.5,0.5486962]
[1772223414673,0.55771343,1927.9,1927.6,0.5476962]
[1772223414971,0.55571343,1927.6,1927.4,0.001]
[1772223415351,0.48989376,1927.7,1927.4,0.001]
[1772223415552,1.04560719,1927.7,1927.4,0.001]
[1772223417158,0.55571343,1927.6,1927.4,0.001]
[1772223418673,1.85266825,1927.6,1927.4,0.001]
[1772223419171,1.04560719,1927.5,1927.3,0.001]
[1772223419369,0.55571343,1927.5,1927.3,0.001]
[1772223420370,0.55771343,1927.9,1927.3,0.5486962]
[1772223420872,0.55771343,1927.9,1927.5,0.5476962]
[1772223422174,0.002,1927.9,1927.5,0.5476962]
[1772223422983,0.002,1927.9,1927.6,1.84464577]
[1772223424072,0.002,1927.9,1927.7,0.5476962]
[1772223425174,0.002,1927.9,1927.7,1.84457375]
[1772223425477,0.002,1927.9,1927.8,0.5476962]
[1772223426187,0.55771343,1927.9,1927.5,1.84566727]
[1772223426490,1.29097971,1927.8,1927.5,0.001]
[1772223426654,0.55571343,1927.8,1927.5,1.84570856]
[1772223426860,0.002,1927.9,1927.6,0.5476962]
[1772223428890,0.002,1927.9,1927.7,1.29688229]
[1772223429182,0.002,1927.9,1927.7,1.84457849]
[1772223430190,0.5370572,1927.9,1927.6,1.23690301]
[1772223430854,0.5370572,1927.9,1927.6,1.81441233]
[1772223431485,0.002,1927.9,1927.6,1.81441233]
[1772223433104,0.002,1927.9,1927.5,0.001]
[1772223433105,0.5350572,1927.8,1927.5,0.001]
[1772223436790,1.83189577,1927.8,1927.5,0.001]
[1772223437013,0.5350572,1927.7,1927.5,0.001]
[1772223438495,0.5370572,1927.8,1927.5,0.001]
[1772223438793,0.5370572,1927.8,1927.5,0.57850932]
[1772223439196,0.002,1927.8,1927.6,1.29694957]
[1772223439497,0.002,1927.8,1927.5,1.87552618]
[1772223440402,0.002,1927.8,1927.6,0.57750932]
[1772223440696,0.002,1928.0,1927.8,0.57750932]
[1772223442395,0.002,1928.0,1927.9,0.57750932]
[1772223445211,0.002,1928.0,1927.9,1.87425707]
[1772223447789,0.002,1928.1,1928.0,0.57750932]
[1772223450283,0.002,1928.1,1928.0,1.87418981]
[1772223450991,0.002,1928.1,1927.9,1.29672696]
[1772223451196,0.002,1928.1,1927.9,2.99272696]